[Event "The Elitserien 2024/25: round 1 - 3"]
[Site "Scandic Infra City, Kanalvagen 10, Upplands Vasby, Sweden"]
[Date "2024.10.04"]
[Round "1.18"]
[White "Ernst, Sipke"]
[Black "Lyrberg, Patrik"]
[Result "0-1"]
[TimeControl "90 minutes for 40 moves + 30 minutes for the rest of the game + 30 seconds per move from move one."]
[WhiteTitle "GM"]
[BlackTitle "IM"]
[WhiteFideId "1004689"]
[BlackFideId "1701975"]
[WhiteElo "2509"]
[BlackElo "2436"]

1. d4 {[%clk 01:30:56]} {[%emt 00:00:03]} Nf6 {[%clk 01:30:51]} {[%emt
00:00:10]} 2. c4 {[%clk 01:31:18]} {[%emt 00:00:08]} e6 {[%clk 01:30:49]}
{[%emt 00:00:32]} 3. Nf3 {[%clk 01:31:30]} {[%emt 00:00:18]} Bb4+ {[%clk
01:30:39]} {[%emt 00:00:39]} 4. Bd2 {[%clk 01:31:51]} {[%emt 00:00:10]} Bxd2+
{[%clk 01:30:20]} {[%emt 00:00:49]} 5. Qxd2 {[%clk 01:32:05]} {[%emt 00:00:15]}
O-O {[%clk 01:29:35]} {[%emt 00:01:16]} 6. Nc3 {[%clk 01:32:04]} {[%emt
00:00:31]} d5 {[%clk 01:29:56]} {[%emt 00:00:09]} 7. e3 {[%clk 01:31:53]}
{[%emt 00:00:41]} Ne4 {[%clk 01:22:34]} {[%emt 00:07:52]} 8. Qc2 {[%clk
01:31:58]} {[%emt 00:00:25]} Nxc3 {[%clk 01:20:24]} {[%emt 00:02:41]} 9. Qxc3
{[%clk 01:32:08]} {[%emt 00:00:19]} a5 {[%clk 01:16:54]} {[%emt 00:04:00]} 10.
Rc1 {[%clk 01:29:49]} {[%emt 00:02:50]} c6 {[%clk 01:16:16]} {[%emt 00:01:08]}
11. Bd3 {[%clk 01:27:06]} {[%emt 00:03:12]} Nd7 {[%clk 01:14:48]} {[%emt
00:01:58]} 12. O-O {[%clk 01:18:08]} {[%emt 00:09:27]} f5 {[%clk 01:11:40]}
{[%emt 00:03:39]} 13. Qc2 {[%clk 01:17:12]} {[%emt 00:01:26]} Qf6 {[%clk
01:09:33]} {[%emt 00:02:37]} 14. h4 {[%clk 01:11:07]} {[%emt 00:06:35]} Kh8
{[%clk 01:06:22]} {[%emt 00:03:41]} 15. cxd5 {[%clk 00:55:48]} {[%emt
00:15:49]} exd5 {[%clk 01:06:36]} {[%emt 00:00:16]} 16. g3 {[%clk 00:56:03]}
{[%emt 00:00:15]} Qe6 {[%clk 00:59:25]} {[%emt 00:07:41]} 17. Ng5 {[%clk
00:52:21]} {[%emt 00:04:12]} Qg6 {[%clk 00:59:39]} {[%emt 00:00:17]} 18. Nh3
{[%clk 00:52:02]} {[%emt 00:00:47]} Qe8 {[%clk 00:54:45]} {[%emt 00:05:24]} 19.
Nf4 {[%clk 00:49:10]} {[%emt 00:03:23]} g6 {[%clk 00:54:28]} {[%emt 00:00:48]}
20. a4 {[%clk 00:41:21]} {[%emt 00:08:20]} Nf6 {[%clk 00:52:43]} {[%emt
00:02:14]} 21. Rfe1 {[%clk 00:39:33]} {[%emt 00:02:18]} Kg7 {[%clk 00:41:33]}
{[%emt 00:11:40]} 22. f3 {[%clk 00:35:16]} {[%emt 00:04:46]} Qd8 {[%clk
00:40:05]} {[%emt 00:01:58]} 23. Kg2 {[%clk 00:30:53]} {[%emt 00:04:54]} Re8
{[%clk 00:38:30]} {[%emt 00:02:05]} 24. Qb3 {[%clk 00:27:28]} {[%emt 00:03:55]}
h6 {[%clk 00:37:24]} {[%emt 00:01:36]} 25. Qc2 {[%clk 00:22:42]} {[%emt
00:05:16]} Qd6 {[%clk 00:26:53]} {[%emt 00:11:01]} 26. Qc5 {[%clk 00:22:11]}
{[%emt 00:01:01]} Qxc5 {[%clk 00:27:00]} {[%emt 00:00:24]} 27. Rxc5 {[%clk
00:22:05]} {[%emt 00:00:37]} g5 {[%clk 00:27:24]} {[%emt 00:00:05]} 28. hxg5
{[%clk 00:22:00]} {[%emt 00:00:35]} hxg5 {[%clk 00:27:49]} {[%emt 00:00:05]} 29.
Nh3 {[%clk 00:22:10]} {[%emt 00:00:20]} g4 {[%clk 00:24:05]} {[%emt 00:04:14]}
30. Nf2 {[%clk 00:13:45]} {[%emt 00:08:55]} gxf3+ {[%clk 00:23:22]} {[%emt
00:01:14]} 31. Kxf3 {[%clk 00:14:11]} {[%emt 00:00:04]} Bd7 {[%clk 00:23:22]}
{[%emt 00:00:30]} 32. Kg2 {[%clk 00:10:42]} {[%emt 00:04:00]} Re7 {[%clk
00:20:45]} {[%emt 00:03:06]} 33. Rc2 {[%clk 00:10:50]} {[%emt 00:00:22]} Rae8
{[%clk 00:19:25]} {[%emt 00:01:50]} 34. Rce2 {[%clk 00:11:12]} {[%emt
00:00:06]} Rg8 {[%clk 00:12:53]} {[%emt 00:07:04]} 35. Rh1 {[%clk 00:09:17]}
{[%emt 00:02:23]} Kf8 {[%clk 00:10:21]} {[%emt 00:03:03]} 36. Rh6 {[%clk
00:09:36]} {[%emt 00:00:11]} Reg7 {[%clk 00:02:51]} {[%emt 00:08:00]} 37. Nh1
{[%clk 00:06:40]} {[%emt 00:03:27]} Ke7 {[%clk 00:02:38]} {[%emt 00:00:43]} 38.
Rh4 {[%clk 00:06:47]} {[%emt 00:00:23]} Ne4 {[%clk 00:02:39]} {[%emt 00:00:29]}
39. Bxe4 {[%clk 00:06:04]} {[%emt 00:01:12]} fxe4 {[%clk 00:03:03]} {[%emt
00:00:06]} 40. b4 {[%clk 00:03:35]} {[%emt 00:02:59]} Bg4 {[%clk 00:02:42]}
{[%emt 00:00:52]} 41. Rb2 {[%clk 00:04:02]} {[%emt 00:00:03]} axb4 {[%clk
00:01:58]} {[%emt 00:01:13]} 42. Rxb4 {[%clk 00:04:26]} {[%emt 00:00:06]} Kd6
{[%clk 00:00:35]} {[%emt 00:01:52]} 43. Rb1 {[%clk 00:01:20]} {[%emt 00:03:37]}
Bf3+ {[%clk 00:30:14]} {[%emt 00:00:52]} 44. Kh2 {[%clk 00:30:40]} {[%emt
00:01:09]} Bxh1 {[%clk 00:26:57]} {[%emt 00:03:47]} 45. Kxh1 {[%clk 00:30:57]}
{[%emt 00:00:13]} Kc7 {[%clk 00:27:02]} {[%emt 00:00:25]} 46. g4 {[%clk
00:29:59]} {[%emt 00:01:29]} Rxg4 {[%clk 00:27:18]} {[%emt 00:00:14]} 47. Rxg4
{[%clk 00:30:19]} {[%emt 00:00:09]} Rxg4 {[%clk 00:27:40]} {[%emt 00:00:08]} 48.
a5 {[%clk 00:29:33]} {[%emt 00:01:16]} Kb8 {[%clk 00:21:43]} {[%emt 00:06:25]}
49. Kh2 {[%clk 00:29:09]} {[%emt 00:00:55]} Ka7 {[%clk 00:21:54]} {[%emt
00:00:19]} 50. Rf1 {[%clk 00:28:40]} {[%emt 00:00:58]} Ka6 {[%clk 00:20:43]}
{[%emt 00:01:41]} 51. Ra1 {[%clk 00:27:19]} {[%emt 00:01:51]} Rg8 {[%clk
00:17:12]} {[%emt 00:04:01]} 52. Ra3 {[%clk 00:27:16]} {[%emt 00:00:34]} Rg7
{[%clk 00:17:28]} {[%emt 00:00:15]} 53. Ra2 {[%clk 00:27:08]} {[%emt 00:00:38]}
Rf7 {[%clk 00:16:49]} {[%emt 00:01:09]} 0-1

[Event "The Elitserien 2024/25: round 1 - 3"]
[Site "Scandic Infra City, Kanalvagen 10, Upplands Vasby, Sweden"]
[Date "2024.10.04"]
[Round "1.19"]
[White "Von Bahr, Oskar"]
[Black "Holm, Kristian Stuvik"]
[Result "1/2-1/2"]
[TimeControl "90 minutes for 40 moves + 30 minutes for the rest of the game + 30 seconds per move from move one."]
[WhiteTitle "IM"]
[BlackTitle "IM"]
[WhiteFideId "1703250"]
[BlackFideId "1508083"]
[WhiteElo "2370"]
[BlackElo "2480"]

1. e4 {[%clk 01:30:54]} {[%emt 00:00:04]} e6 {[%clk 01:28:03]} {[%emt
00:02:59]} 2. d4 {[%clk 01:31:03]} {[%emt 00:00:20]} d5 {[%clk 01:28:27]}
{[%emt 00:00:06]} 3. Nd2 {[%clk 01:30:30]} {[%emt 00:01:03]} c5 {[%clk
01:26:08]} {[%emt 00:02:50]} 4. exd5 {[%clk 01:30:35]} {[%emt 00:00:25]} Qxd5
{[%clk 01:26:32]} {[%emt 00:00:05]} 5. Ngf3 {[%clk 01:30:37]} {[%emt 00:00:28]}
cxd4 {[%clk 01:26:57]} {[%emt 00:00:06]} 6. Bc4 {[%clk 01:30:52]} {[%emt
00:00:14]} Qd6 {[%clk 01:27:21]} {[%emt 00:00:07]} 7. O-O {[%clk 01:30:42]}
{[%emt 00:00:40]} Nf6 {[%clk 01:27:42]} {[%emt 00:00:07]} 8. Nb3 {[%clk
01:30:23]} {[%emt 00:00:50]} Nc6 {[%clk 01:27:58]} {[%emt 00:00:15]} 9. Nbxd4
{[%clk 01:30:05]} {[%emt 00:00:47]} Nxd4 {[%clk 01:27:19]} {[%emt 00:01:09]} 10.
Qxd4 {[%clk 01:28:40]} {[%emt 00:01:55]} Qxd4 {[%clk 01:27:36]} {[%emt
00:00:14]} 11. Nxd4 {[%clk 01:29:04]} {[%emt 00:00:06]} Bc5 {[%clk 01:27:57]}
{[%emt 00:00:08]} 12. Nb3 {[%clk 01:27:54]} {[%emt 00:01:40]} Bb6 {[%clk
01:27:45]} {[%emt 00:00:42]} 13. a4 {[%clk 01:22:26]} {[%emt 00:05:57]} a5
{[%clk 01:27:57]} {[%emt 00:00:18]} 14. Be2 {[%clk 01:15:07]} {[%emt 00:07:48]}
Bd7 {[%clk 01:28:08]} {[%emt 00:00:21]} 15. Bf3 {[%clk 01:15:00]} {[%emt
00:00:36]} Rc8 {[%clk 01:27:38]} {[%emt 00:01:01]} 16. c3 {[%clk 01:11:53]}
{[%emt 00:03:36]} Bc6 {[%clk 01:27:13]} {[%emt 00:00:56]} 17. Bxc6+ {[%clk
01:11:49]} {[%emt 00:00:35]} Rxc6 {[%clk 01:27:33]} {[%emt 00:00:09]} 18. Be3
{[%clk 01:06:32]} {[%emt 00:05:46]} Bxe3 {[%clk 01:26:43]} {[%emt 00:01:21]} 19.
fxe3 {[%clk 01:06:56]} {[%emt 00:00:06]} b6 {[%clk 01:23:34]} {[%emt 00:03:38]}
20. Rfd1 {[%clk 00:59:21]} {[%emt 00:08:05]} Ke7 {[%clk 01:20:27]} {[%emt
00:03:37]} 21. Nd4 {[%clk 00:54:21]} {[%emt 00:05:30]} Rc4 {[%clk 01:14:07]}
{[%emt 00:06:50]} 22. Rd3 {[%clk 00:40:29]} {[%emt 00:14:22]} Rd8 {[%clk
00:32:49]} {[%emt 00:41:48]} 23. b3 {[%clk 00:33:14]} {[%emt 00:07:45]} Rcc8
{[%clk 00:32:03]} {[%emt 00:01:16]} 24. Rad1 {[%clk 00:29:17]} {[%emt
00:04:28]} Nd7 {[%clk 00:27:53]} {[%emt 00:04:40]} 25. Nf3 {[%clk 00:23:30]}
{[%emt 00:06:17]} Nc5 {[%clk 00:25:16]} {[%emt 00:03:06]} 26. Rxd8 {[%clk
00:21:55]} {[%emt 00:02:06]} Rxd8 {[%clk 00:25:44]} {[%emt 00:00:02]} 27. Rxd8
{[%clk 00:22:01]} {[%emt 00:00:24]} Kxd8 {[%clk 00:26:12]} {[%emt 00:00:02]} 28.
Nd2 {[%clk 00:22:13]} {[%emt 00:00:16]} f5 {[%clk 00:25:01]} {[%emt 00:01:42]}
29. Kf2 {[%clk 00:21:02]} {[%emt 00:01:42]} g5 {[%clk 00:24:08]} {[%emt
00:01:22]} 30. Ke2 {[%clk 00:18:32]} {[%emt 00:03:01]} Kc7 {[%clk 00:21:34]}
{[%emt 00:03:03]} 31. Kd1 {[%clk 00:15:07]} {[%emt 00:03:54]} g4 {[%clk
00:17:49]} {[%emt 00:04:16]} 32. Kc2 {[%clk 00:13:45]} {[%emt 00:01:52]} h5
{[%clk 00:13:17]} {[%emt 00:05:02]} 1/2-1/2

[Event "The Elitserien 2024/25: round 1 - 3"]
[Site "Scandic Infra City, Kanalvagen 10, Upplands Vasby, Sweden"]
[Date "2024.10.04"]
[Round "1.20"]
[White "Pantzar, Milton"]
[Black "Aronsson, Marten"]
[Result "1-0"]
[TimeControl "90 minutes for 40 moves + 30 minutes for the rest of the game + 30 seconds per move from move one."]
[WhiteTitle "IM"]
[BlackTitle "FM"]
[WhiteFideId "1721003"]
[BlackFideId "1724223"]
[WhiteElo "2437"]
[BlackElo "2310"]

1. d4 {[%clk 01:30:54]} {[%emt 00:00:04]} Nf6 {[%clk 01:30:33]} {[%emt
00:00:29]} 2. c4 {[%clk 01:31:09]} {[%emt 00:00:16]} e6 {[%clk 01:30:50]}
{[%emt 00:00:13]} 3. Nc3 {[%clk 01:31:08]} {[%emt 00:00:31]} d5 {[%clk
01:31:00]} {[%emt 00:00:17]} 4. cxd5 {[%clk 01:31:24]} {[%emt 00:00:16]} exd5
{[%clk 01:31:25]} {[%emt 00:00:06]} 5. Bg5 {[%clk 01:31:43]} {[%emt 00:00:11]}
Nbd7 {[%clk 01:31:44]} {[%emt 00:00:10]} 6. e3 {[%clk 01:30:21]} {[%emt
00:01:52]} c6 {[%clk 01:31:10]} {[%emt 00:01:04]} 7. Bd3 {[%clk 01:30:15]}
{[%emt 00:00:37]} Bd6 {[%clk 01:30:53]} {[%emt 00:00:46]} 8. Nf3 {[%clk
01:23:04]} {[%emt 00:07:41]} Nf8 {[%clk 01:30:15]} {[%emt 00:01:07]} 9. O-O
{[%clk 01:17:45]} {[%emt 00:05:49]} Ng6 {[%clk 01:26:06]} {[%emt 00:04:40]} 10.
e4 {[%clk 01:13:19]} {[%emt 00:04:56]} dxe4 {[%clk 01:25:54]} {[%emt 00:00:41]}
11. Nxe4 {[%clk 01:08:37]} {[%emt 00:05:13]} Be7 {[%clk 01:22:59]} {[%emt
00:03:25]} 12. Nxf6+ {[%clk 01:08:12]} {[%emt 00:00:55]} Bxf6 {[%clk 01:23:17]}
{[%emt 00:00:12]} 13. Re1+ {[%clk 01:07:10]} {[%emt 00:01:32]} Be6 {[%clk
01:22:24]} {[%emt 00:01:23]} 14. Bxf6 {[%clk 01:03:41]} {[%emt 00:03:59]} Qxf6
{[%clk 01:22:43]} {[%emt 00:00:11]} 15. d5 {[%clk 01:02:42]} {[%emt 00:01:29]}
cxd5 {[%clk 01:22:55]} {[%emt 00:00:17]} 16. Qa4+ {[%clk 00:59:46]} {[%emt
00:03:27]} Kf8 {[%clk 01:23:11]} {[%emt 00:00:14]} 17. Qb4+ {[%clk 00:50:45]}
{[%emt 00:09:31]} Qe7 {[%clk 01:22:21]} {[%emt 00:01:19]} 18. Qd4 {[%clk
00:45:17]} {[%emt 00:05:58]} Qd6 {[%clk 01:14:35]} {[%emt 00:08:15]} 19. Rac1
{[%clk 00:41:11]} {[%emt 00:04:37]} Ne7 {[%clk 01:05:07]} {[%emt 00:09:58]} 20.
Ng5 {[%clk 00:35:26]} {[%emt 00:06:16]} Bd7 {[%clk 00:52:58]} {[%emt 00:12:39]}
21. Ne4 {[%clk 00:26:10]} {[%emt 00:09:47]} Qf4 {[%clk 00:45:53]} {[%emt
00:07:33]} 22. g3 {[%clk 00:23:41]} {[%emt 00:03:00]} Qg4 {[%clk 00:38:03]}
{[%emt 00:08:19]} 23. f3 {[%clk 00:21:40]} {[%emt 00:02:31]} Qxf3 {[%clk
00:35:49]} {[%emt 00:02:43]} 24. Ng5 {[%clk 00:16:40]} {[%emt 00:05:31]} Qf6
{[%clk 00:29:51]} {[%emt 00:06:28]} 25. Nxh7+ {[%clk 00:15:26]} {[%emt
00:01:45]} Rxh7 {[%clk 00:30:13]} {[%emt 00:00:08]} 26. Qxf6 {[%clk 00:15:49]}
{[%emt 00:00:06]} gxf6 {[%clk 00:30:37]} {[%emt 00:00:07]} 27. Bxh7 {[%clk
00:16:13]} {[%emt 00:00:06]} f5 {[%clk 00:30:58]} {[%emt 00:00:08]} 28. Rc7
{[%clk 00:14:07]} {[%emt 00:02:36]} Be6 {[%clk 00:31:18]} {[%emt 00:00:10]} 29.
h3 {[%clk 00:08:23]} {[%emt 00:06:14]} d4 {[%clk 00:26:37]} {[%emt 00:05:12]}
30. g4 {[%clk 00:05:52]} {[%emt 00:03:01]} fxg4 {[%clk 00:26:55]} {[%emt
00:00:12]} 31. hxg4 {[%clk 00:06:12]} {[%emt 00:00:10]} Nd5 {[%clk 00:25:56]}
{[%emt 00:01:28]} 32. Rxb7 {[%clk 00:05:45]} {[%emt 00:00:57]} Bxg4 {[%clk
00:23:20]} {[%emt 00:03:05]} 33. Rf1 {[%clk 00:05:28]} {[%emt 00:00:48]} Ne7
{[%clk 00:22:31]} {[%emt 00:01:19]} 34. Be4 {[%clk 00:04:22]} {[%emt 00:01:36]}
Rd8 {[%clk 00:21:55]} {[%emt 00:01:05]} 35. Bd3 {[%clk 00:02:27]} {[%emt
00:02:26]} Be6 {[%clk 00:19:23]} {[%emt 00:03:02]} 36. Rxa7 {[%clk 00:02:14]}
{[%emt 00:00:43]} Rd5 {[%clk 00:19:32]} {[%emt 00:00:21]} 37. a4 {[%clk
00:00:50]} {[%emt 00:01:54]} Nc6 {[%clk 00:16:54]} {[%emt 00:03:08]} 38. Ra8+
{[%clk 00:01:16]} {[%emt 00:00:04]} Ke7 {[%clk 00:17:10]} {[%emt 00:00:14]} 39.
Be4 {[%clk 00:01:14]} {[%emt 00:00:33]} Rg5+ {[%clk 00:17:29]} {[%emt
00:00:11]} 40. Kf2 {[%clk 00:01:05]} {[%emt 00:00:39]} Ne5 {[%clk 00:13:35]}
{[%emt 00:04:23]} 41. Ra7+ {[%clk 00:22:19]} {[%emt 00:09:17]} Kd6 {[%clk
00:40:27]} {[%emt 00:03:38]} 42. Rd1 {[%clk 00:13:57]} {[%emt 00:08:51]} Ng4+
{[%clk 00:39:34]} {[%emt 00:01:24]} 43. Ke2 {[%clk 00:13:43]} {[%emt 00:00:43]}
Re5 {[%clk 00:34:16]} {[%emt 00:05:48]} 44. Kf3 {[%clk 00:12:57]} {[%emt
00:01:17]} f5 {[%clk 00:20:06]} {[%emt 00:14:40]} 45. Ba8 {[%clk 00:10:30]}
{[%emt 00:02:56]} Rc5 {[%clk 00:16:56]} {[%emt 00:03:40]} 46. Rxd4+ {[%clk
00:08:59]} {[%emt 00:02:03]} Ke5 {[%clk 00:17:21]} {[%emt 00:00:03]} 47. Rd2
{[%clk 00:07:36]} {[%emt 00:01:53]} Rc1 {[%clk 00:17:23]} {[%emt 00:00:28]} 48.
Re2+ {[%clk 00:06:08]} {[%emt 00:01:59]} Kf6 {[%clk 00:17:43]} {[%emt
00:00:11]} 49. Ra6 {[%clk 00:04:55]} {[%emt 00:01:41]} Ne5+ {[%clk 00:17:38]}
{[%emt 00:00:34]} 50. Kg3 {[%clk 00:05:06]} {[%emt 00:00:20]} Rd1 {[%clk
00:15:04]} {[%emt 00:03:04]} 51. Bb7 {[%clk 00:03:10]} {[%emt 00:02:27]} Rd3+
{[%clk 00:15:24]} {[%emt 00:00:09]} 52. Kf2 {[%emt 00:01:57]} Rd8 {[%clk
00:14:43]} 53. a5 {[%clk 00:02:42]} {[%emt 00:00:43]} Nd3+ {[%clk 00:14:50]}
{[%emt 00:00:22]} 54. Kf1 {[%clk 00:02:40]} {[%emt 00:00:32]} Nf4 {[%clk
00:13:33]} {[%emt 00:01:47]} 55. Re1 {[%clk 00:00:59]} {[%emt 00:02:12]} Kf7
{[%clk 00:13:45]} {[%emt 00:00:18]} 56. Rc6 {[%clk 00:01:22]} {[%emt 00:00:06]}
Rd7 {[%clk 00:11:43]} {[%emt 00:02:32]} 57. a6 {[%clk 00:01:30]} {[%emt
00:00:23]} Bd5 {[%clk 00:11:57]} {[%emt 00:00:17]} 58. Rc5 {[%clk 00:01:33]}
{[%emt 00:00:27]} 1-0

[Event "The Elitserien 2024/25: round 1 - 3"]
[Site "Scandic Infra City, Kanalvagen 10, Upplands Vasby, Sweden"]
[Date "2024.10.04"]
[Round "1.21"]
[White "Henriksson, Johan"]
[Black "Storme, Isak"]
[Result "0-1"]
[TimeControl "90 minutes for 40 moves + 30 minutes for the rest of the game + 30 seconds per move from move one."]
[WhiteTitle "FM"]
[BlackTitle "IM"]
[WhiteFideId "1703560"]
[BlackFideId "1728113"]
[WhiteElo "2321"]
[BlackElo "2447"]

1. d4 {[%clk 01:30:58]} {[%emt 00:00:02]} Nf6 {[%clk 01:30:34]} {[%emt
00:00:16]} 2. c4 {[%clk 01:31:22]} {[%emt 00:00:12]} e6 {[%clk 01:30:58]}
{[%emt 00:00:10]} 3. g3 {[%clk 01:31:26]} {[%emt 00:00:26]} c5 {[%clk
01:30:07]} {[%emt 00:01:20]} 4. Nf3 {[%clk 01:31:47]} {[%emt 00:00:10]} cxd4
{[%clk 01:28:49]} {[%emt 00:01:48]} 5. Nxd4 {[%clk 01:31:51]} {[%emt 00:00:26]}
d5 {[%clk 01:25:38]} {[%emt 00:03:41]} 6. Bg2 {[%clk 01:30:54]} {[%emt
00:01:28]} e5 {[%clk 01:25:15]} {[%emt 00:00:51]} 7. Nb3 {[%clk 01:30:20]}
{[%emt 00:01:04]} d4 {[%clk 01:20:06]} {[%emt 00:05:40]} 8. O-O {[%clk
01:29:28]} {[%emt 00:01:23]} Nc6 {[%clk 01:18:33]} {[%emt 00:02:02]} 9. f4
{[%clk 01:25:35]} {[%emt 00:04:24]} e4 {[%clk 01:03:22]} {[%emt 00:15:41]} 10.
f5 {[%clk 01:23:48]} {[%emt 00:02:17]} a5 {[%clk 00:47:55]} {[%emt 00:15:56]}
11. Bg5 {[%clk 01:10:56]} {[%emt 00:13:22]} a4 {[%clk 00:46:17]} {[%emt
00:02:08]} 12. N3d2 {[%clk 01:07:04]} {[%emt 00:04:22]} e3 {[%clk 00:45:26]}
{[%emt 00:01:20]} 13. Ne4 {[%clk 00:55:22]} {[%emt 00:12:12]} Be7 {[%clk
00:44:20]} {[%emt 00:01:37]} 14. Bxf6 {[%clk 00:50:10]} {[%emt 00:05:42]} Bxf6
{[%clk 00:43:25]} {[%emt 00:01:25]} 15. Nxf6+ {[%clk 00:49:17]} {[%emt
00:01:23]} Qxf6 {[%clk 00:43:31]} {[%emt 00:00:23]} 16. Rf4 {[%clk 00:46:07]}
{[%emt 00:03:41]} O-O {[%clk 00:40:25]} {[%emt 00:03:36]} 17. Bxc6 {[%clk
00:46:04]} {[%emt 00:00:33]} bxc6 {[%clk 00:40:02]} {[%emt 00:00:53]} 18. Qxd4
{[%clk 00:46:22]} {[%emt 00:00:13]} Qxd4 {[%clk 00:39:33]} {[%emt 00:00:59]} 19.
Rxd4 {[%clk 00:46:46]} {[%emt 00:00:06]} Bxf5 {[%clk 00:35:53]} {[%emt
00:04:09]} 20. Nc3 {[%clk 00:46:15]} {[%emt 00:01:01]} Rfb8 {[%clk 00:34:34]}
{[%emt 00:01:48]} 21. Nd1 {[%clk 00:44:42]} {[%emt 00:02:04]} Bg6 {[%clk
00:28:52]} {[%emt 00:06:11]} 22. Rc1 {[%clk 00:43:10]} {[%emt 00:02:03]} h6
{[%clk 00:24:35]} {[%emt 00:04:46]} 23. c5 {[%clk 00:38:13]} {[%emt 00:05:28]}
a3 {[%clk 00:18:06]} {[%emt 00:06:59]} 24. b3 {[%clk 00:37:24]} {[%emt
00:01:19]} Re8 {[%clk 00:14:38]} {[%emt 00:03:58]} 25. Rd6 {[%clk 00:32:06]}
{[%emt 00:05:49]} Ra6 {[%clk 00:07:47]} {[%emt 00:07:21]} 26. Nc3 {[%emt
00:05:59]} Rb8 {[%clk 00:04:48]} 27. Nd5 {[%clk 00:28:35]} {[%emt 00:02:01]}
Kh7 {[%clk 00:04:00]} {[%emt 00:01:17]} 28. Nxe3 {[%clk 00:27:38]} {[%emt
00:01:27]} Be4 {[%clk 00:04:11]} {[%emt 00:00:19]} 29. Rd4 {[%clk 00:23:29]}
{[%emt 00:04:41]} f5 {[%clk 00:03:52]} {[%emt 00:00:48]} 30. g4 {[%clk
00:21:43]} {[%emt 00:02:16]} Re8 {[%clk 00:03:13]} {[%emt 00:01:08]} 31. gxf5
{[%clk 00:10:57]} {[%emt 00:11:18]} Ra7 {[%clk 00:03:36]} {[%emt 00:00:06]} 32.
Nc4 {[%clk 00:10:42]} {[%emt 00:00:45]} Bxf5 {[%clk 00:03:06]} {[%emt
00:01:00]} 33. Kf2 {[%clk 00:09:55]} {[%emt 00:01:17]} Rae7 {[%clk 00:02:13]}
{[%emt 00:01:22]} 34. e3 {[%clk 00:09:21]} {[%emt 00:01:04]} Be4 {[%clk
00:01:43]} {[%emt 00:01:01]} 35. Nd6 {[%clk 00:09:00]} {[%emt 00:00:51]} Rf8+
{[%clk 00:02:04]} {[%emt 00:00:09]} 36. Ke2 {[%clk 00:09:06]} {[%emt 00:00:24]}
Bf3+ {[%clk 00:02:04]} {[%emt 00:00:30]} 37. Kd3 {[%clk 00:08:46]} {[%emt
00:00:50]} Bh5 {[%clk 00:01:37]} {[%emt 00:00:56]} 38. Rc2 {[%clk 00:08:08]}
{[%emt 00:01:10]} Rf3 {[%clk 00:01:26]} {[%emt 00:00:40]} 39. Kc4 {[%clk
00:05:31]} {[%emt 00:03:09]} Rfxe3 {[%clk 00:00:51]} {[%emt 00:01:05]} 40. Kb4
{[%clk 00:04:12]} {[%emt 00:01:50]} Bg6 {[%clk 00:00:40]} {[%emt 00:00:39]} 41.
Rcd2 {[%clk 00:28:26]} {[%emt 00:06:16]} Ra7 {[%clk 00:28:55]} {[%emt
00:02:15]} 42. Nc4 {[%clk 00:27:18]} {[%emt 00:01:38]} Ree7 {[%clk 00:28:59]}
{[%emt 00:00:24]} 43. Kc3 {[%clk 00:22:02]} {[%emt 00:05:49]} h5 {[%clk
00:21:30]} {[%emt 00:07:58]} 44. b4 {[%clk 00:20:17]} {[%emt 00:02:16]} Re1
{[%clk 00:19:05]} {[%emt 00:02:54]} 45. Na5 {[%clk 00:19:36]} {[%emt 00:01:12]}
Re3+ {[%clk 00:18:27]} {[%emt 00:01:07]} 46. R4d3 {[%clk 00:18:22]} {[%emt
00:01:45]} Bxd3 {[%clk 00:18:17]} {[%emt 00:00:39]} 47. Rxd3 {[%clk 00:18:50]}
{[%emt 00:00:03]} Re6 {[%clk 00:14:10]} {[%emt 00:04:36]} 48. Kc4 {[%clk
00:18:27]} {[%emt 00:00:54]} g5 {[%clk 00:13:08]} {[%emt 00:01:31]} 49. Nxc6
{[%clk 00:12:31]} {[%emt 00:06:27]} Rxc6 {[%clk 00:13:17]} {[%emt 00:00:20]} 50.
b5 {[%clk 00:12:58]} {[%emt 00:00:04]} Rc8 {[%clk 00:12:39]} {[%emt 00:01:08]}
51. b6 {[%clk 00:13:01]} {[%emt 00:00:27]} Rf7 {[%clk 00:11:53]} {[%emt
00:01:16]} 52. Rxa3 {[%clk 00:09:06]} {[%emt 00:04:26]} g4 {[%clk 00:10:36]}
{[%emt 00:01:45]} 53. Kb5 {[%clk 00:09:09]} {[%emt 00:00:27]} h4 {[%clk
00:09:46]} {[%emt 00:01:19]} 54. Ra4 {[%clk 00:08:41]} {[%emt 00:00:59]} Rf5
{[%clk 00:03:50]} {[%emt 00:06:25]} 55. Rc4 {[%clk 00:08:20]} {[%emt 00:00:52]}
g3 {[%clk 00:03:31]} {[%emt 00:00:50]} 56. b7 {[%clk 00:07:36]} {[%emt
00:01:13]} Rb8 {[%clk 00:03:23]} {[%emt 00:00:39]} 57. Rxh4+ {[%clk 00:03:42]}
{[%emt 00:04:25]} Kg6 {[%clk 00:03:15]} {[%emt 00:00:36]} 58. Rg4+ {[%clk
00:03:42]} {[%emt 00:00:31]} Kh5 {[%clk 00:02:31]} {[%emt 00:01:14]} 59. Rxg3
{[%clk 00:03:23]} {[%emt 00:00:49]} Rxb7+ {[%clk 00:02:51]} {[%emt 00:00:10]}
60. Kc6 {[%clk 00:03:04]} {[%emt 00:00:49]} Rb2 {[%clk 00:01:36]} {[%emt
00:01:45]} 61. a4 {[%clk 00:00:51]} {[%emt 00:02:43]} Rc2 {[%clk 00:01:46]}
{[%emt 00:00:18]} 62. Rb3 {[%clk 00:01:05]} {[%emt 00:00:18]} Rfxc5+ {[%clk
00:01:40]} {[%emt 00:00:36]} 63. Kb6 {[%clk 00:00:47]} {[%emt 00:00:48]} Rc6+
{[%clk 00:01:57]} 0-1